bitfinex/quotes_ETHUSD_20250903
["timestamp","ask_amount","ask_price","bid_price","bid_amount"]
[1756874363678,25.36185291,4338.9,4338.8,1e-08]
[1756874363898,15.54401092,4338.9,4338.8,1e-08]
[1756874364083,19.39901092,4338.9,4338.8,1.23290001]
[1756874364393,19.40001092,4338.9,4338.8,1.23290001]
[1756874365779,19.40001092,4338.9,4338.8,1e-08]
[1756874367269,19.57078854,4338.9,4338.8,1e-08]
[1756874367667,19.57078854,4338.9,4338.8,1.23290001]
[1756874368628,19.57078854,4338.9,4338.8,0.76120001]
[1756874368773,19.57078854,4338.9,4338.8,1.23290001]
[1756874369777,15.71578854,4338.9,4338.8,1.23290001]
[1756874370000,17.93978049,4338.9,4338.8,1.23290001]
[1756874370806,17.76900287,4338.9,4338.8,1.23290001]
[1756874373694,3.93073161,4338.9,4338.8,1.23290001]
[1756874373908,8.481,4338.9,4338.8,1.23290001]
[1756874374115,5.481,4338.9,4338.8,1.23290001]
[1756874374424,5.481,4338.9,4338.8,1.35659001]
[1756874375243,8.481,4338.9,4338.8,1.35659001]
[1756874375913,1.626,4338.9,4338.8,1.35659001]
[1756874376147,5.481,4338.9,4338.8,1.35659001]
[1756874377606,8.481,4338.9,4338.8,1.35659001]
[1756874378343,8.481,4338.9,4338.8,1.23290001]
[1756874388467,8.48,4338.9,4338.8,1.23290001]
[1756874392749,4.626,4338.9,4338.8,1.23290001]
[1756874392969,8.48,4338.9,4338.8,1.23290001]
[1756874393168,4.626,4338.9,4338.8,1.23290001]
[1756874393450,8.48,4338.9,4338.8,1.23290001]
[1756874394981,8.48,4338.9,4338.8,0.77170001]
[1756874395180,8.48,4338.9,4338.8,0.30000001]
[1756874395789,8.48,4338.9,4338.8,1e-08]
[1756874396594,10.78573161,4338.9,4338.8,1e-08]
[1756874397957,8.481,4338.9,4338.8,1e-08]
[1756874399693,8.48,4338.9,4338.8,1e-08]
[1756874399894,8.48,4338.9,4338.8,1.23360001]
[1756874400894,4.626,4338.9,4338.8,1.23360001]
[1756874401095,8.48,4338.9,4338.8,1.23360001]
[1756874402094,8.48,4338.9,4338.8,1e-08]
[1756874402883,8.48,4338.9,4338.8,1.23360001]
[1756874403076,5.48,4338.9,4338.8,3.53838474]
[1756874403264,0.001,4338.9,4338.8,4.12311693]
[1756874403465,2.052,4338.9,4338.8,4.23831693]
[1756874404398,3.855,4338.9,4338.8,4.23831693]
[1756874405065,0.001,4338.9,4338.8,4.23831693]
[1756874409900,0.001,4338.9,4338.8,4.26136477]
[1756874410604,0.001,4339.4,4339.3,2.30451916]
[1756874410786,0.001,4339.4,4339.3,2.788476]
[1756874411103,0.001,4339.4,4339.3,4.137276]
[1756874411704,0.001,4339.4,4339.3,4.11423081]
[1756874412395,0.001,4339.4,4339.3,4.137276]
[1756874412591,0.001,4339.4,4339.3,4.11423081]
[1756874414396,0.001,4339.4,4339.3,4.137276]
[1756874414580,0.001,4339.4,4339.3,4.11423081]
[1756874415205,0.001,4339.4,4339.3,3.63253081]
[1756874417180,0.001,4339.4,4339.3,3.17393081]
[1756874417584,0.001,4339.4,4339.3,3.63253081]
[1756874417880,0.001,4339.4,4339.3,4.11423081]
[1756874420732,0.001,4339.4,4339.3,0.1152]
[1756874421021,0.002,4339.4,4339.3,0.1152]
[1756874421206,0.4253,4339.4,4338.8,1e-08]
[1756874421407,0.1152,4339.3,4338.8,1e-08]
[1756874421611,3.853,4339.2,4338.8,1e-08]
[1756874421791,0.001,4338.9,4338.8,1e-08]
[1756874422407,0.5395,4338.9,4338.8,1e-08]
[1756874423534,3.9692,4338.9,4338.8,1e-08]
[1756874435157,3.9682,4338.9,4338.8,0.31590001]
[1756874435373,3.853,4338.9,4338.8,1.27070001]
[1756874435577,3.853,4338.9,4338.8,3.57548474]
[1756874435980,3.853,4338.9,4338.8,1.27070001]
[1756874437853,3.853,4338.9,4338.8,3.57548474]
[1756874438265,3.853,4338.9,4338.8,1.27070001]
[1756874438760,0.69287985,4339.0,4338.8,1.27070001]
[1756874438961,3.853,4338.9,4338.8,0.31590001]
[1756874439485,3.853,4338.9,4338.8,1.27070001]
[1756874440569,3.853,4338.9,4338.8,1e-08]
[1756874442780,0.1152,4339.0,4338.8,0.81290001]
[1756874443080,3.853,4338.9,4338.8,2.62064255]
[1756874443488,3.853,4338.9,4338.8,0.77370001]
[1756874443665,3.853,4338.9,4338.8,1.27070001]
[1756874444477,0.1152,4339.0,4338.8,1.27070001]
[1756874444677,3.853,4338.9,4338.8,0.31590001]
[1756874445370,3.853,4338.9,4338.8,1.27070001]
[1756874445575,3.853,4338.9,4338.8,3.57548474]
[1756874446164,0.1152,4339.0,4338.9,2.30473161]
[1756874446365,3.9682,4339.0,4338.9,3.28257892]
[1756874446564,3.9682,4339.0,4338.9,3.57543161]
[1756874446763,3.853,4339.0,4338.9,3.57543161]
[1756874447202,3.853,4339.0,4338.9,1.2707]
[1756874448196,3.853,4339.0,4338.9,3.57543161]
[1756874448407,3.853,4339.0,4338.9,1.2707]
[1756874450464,3.853,4339.0,4338.9,3.57543161]
[1756874450961,3.854,4339.0,4338.9,3.57543161]
[1756874451357,3.854,4339.0,4338.9,1.2707]
[1756874452606,3.854,4339.0,4338.8,3.01994608]
[1756874452761,3.854,4339.0,4338.8,3.47774608]
[1756874452963,3.854,4339.0,4338.8,2.8777844]
[1756874453378,3.854,4339.0,4338.8,0.11520001]
[1756874453791,3.854,4339.0,4338.8,2.41997828]
[1756874454114,3.854,4339.0,4338.8,2.87777828]
[1756874454598,0.001,4339.0,4338.9,3.57543161]
[1756874454769,3.854,4339.0,4338.9,4.17497667]
[1756874456278,3.854,4339.0,4338.9,3.57543161]
[1756874457322,0.001,4339.0,4338.9,3.57543161]
[1756874457619,0.001,4339.4,4339.3,2.30451916]
[1756874457922,0.001,4339.4,4339.3,9.05513822]
[1756874458125,0.001,4339.4,4339.3,10.32583822]
[1756874458417,0.001,4339.4,4339.3,10.44103822]
[1756874458622,0.001,4339.4,4339.3,12.08938173]
[1756874460822,1e-08,4339.4,4339.3,12.08938173]
[1756874461317,1e-08,4339.4,4339.3,18.48938173]
[1756874461515,0.021,4339.8,4339.7,2.30430674]
[1756874461717,0.021,4339.8,4339.7,13.36779511]
[1756874461922,1e-08,4339.8,4339.7,13.78579511]
[1756874462217,1e-08,4339.8,4339.7,14.66939511]
[1756874463391,1e-08,4339.9,4339.8,3.09625365]
[1756874463585,1e-08,4339.9,4339.8,7.00289618]
[1756874463893,1e-08,4339.9,4339.8,10.89328604]
[1756874464718,0.021,4340.8,4340.7,2.30377588]
[1756874464921,0.021,4340.8,4340.7,6.15577588]
[1756874465085,0.021,4340.8,4340.7,7.34217588]
[1756874465282,0.021,4340.8,4340.7,7.45737588]
[1756874465494,0.021,4340.8,4340.7,9.02936088]
[1756874467532,0.12,4340.8,4340.7,7.84196088]
[1756874467697,0.12,4340.8,4340.7,3.99096088]
[1756874468430,0.021,4340.8,4340.7,3.99096088]
[1756874469001,0.021,4340.8,4340.7,4.29376088]
[1756874469202,0.021,4340.8,4340.7,4.72296088]
[1756874471439,0.021,4340.8,4340.7,4.29376088]
[1756874471606,0.12,4340.8,4340.7,3.99096088]
[1756874473533,0.021,4340.8,4340.7,3.99096088]
[1756874474710,0.021,4340.8,4340.7,4.29376088]
[1756874474906,0.021,4340.8,4340.7,4.72296088]
[1756874476849,0.021,4340.8,4340.7,5.17736088]
[1756874480356,0.021,4340.8,4340.7,9.02736088]
[1756874480557,0.021,4340.8,4340.7,9.81936088]
[1756874482757,1e-08,4340.8,4340.7,9.81936088]
[1756874483326,1e-08,4340.9,4340.8,3.09572281]
[1756874483526,1e-08,4340.9,4340.8,11.34528706]
[1756874483726,1e-08,4340.9,4340.8,12.50864984]
[1756874485259,1e-08,4340.9,4340.8,18.90864984]
[1756874485650,0.001,4341.2,4341.1,3.09556361]
[1756874485651,1e-08,4341.2,4341.1,3.09556361]
[1756874485837,1e-08,4341.2,4341.1,15.12663158]
[1756874486163,1e-08,4341.2,4341.1,16.40519595]
[1756874488163,0.001,4341.4,4341.3,0.792]
[1756874488369,0.001,4341.4,4341.3,6.94445748]
[1756874488576,1e-08,4341.7,4341.5,0.792]
[1756874488726,1e-08,4341.7,4341.6,13.18456313]
[1756874488929,1e-08,4341.7,4341.6,14.37096313]
[1756874489351,1e-08,4341.7,4341.6,14.48616313]
[1756874489950,1e-08,4341.7,4341.6,8.52754407]
[1756874498767,1e-08,4341.8,4341.7,3.09524527]
[1756874498940,1e-08,4341.8,4341.7,10.60476479]
[1756874499140,1e-08,4341.8,4341.7,11.80456479]
[1756874499347,1e-08,4341.8,4341.7,18.20456479]
[1756874501382,1e-08,4341.8,4341.7,12.24594573]
[1756874501558,1e-08,4341.8,4341.7,19.51012806]
[1756874504271,1e-08,4341.8,4341.7,18.59692806]
[1756874504491,1e-08,4341.8,4341.7,18.31032806]
[1756874504905,1e-08,4341.8,4341.7,22.90662806]
[1756874505184,1e-08,4341.8,4341.7,23.35812806]
[1756874507182,1e-08,4341.8,4341.7,22.15832806]
[1756874507920,1e-08,4341.8,4341.7,22.90662806]
[1756874508076,1e-08,4341.8,4341.7,16.09394573]
[1756874509902,1e-08,4341.8,4341.7,23.35812806]
[1756874512099,1e-08,4341.8,4341.7,14.89414573]
[1756874512506,1e-08,4341.8,4341.7,15.18074573]
[1756874512801,1e-08,4341.8,4341.7,11.04614573]
[1756874512984,1e-08,4341.8,4341.7,14.89314573]
[1756874513695,1e-08,4341.8,4341.7,15.17974573]
[1756874513893,1e-08,4341.8,4341.7,15.64144573]
[1756874514877,1e-08,4341.8,4341.7,11.04614573]
[1756874515203,0.09900001,4341.8,4341.7,14.89314573]
[1756874515385,1e-08,4341.8,4341.7,14.89314573]
[1756874515581,1e-08,4341.8,4341.7,15.17974573]
[1756874515782,1e-08,4341.8,4341.7,16.09294573]
[1756874516500,1e-08,4341.8,4341.7,12.24594573]
[1756874516812,1e-08,4341.8,4341.7,16.09294573]
[1756874518032,1e-08,4341.8,4341.7,15.64144573]
[1756874518507,1e-08,4341.8,4341.7,16.09294573]
[1756874520478,1e-08,4341.8,4341.7,14.89314573]
[1756874521613,1e-08,4341.8,4341.7,14.98543528]
[1756874523332,1e-08,4341.8,4341.7,15.74143528]
[1756874525220,1e-08,4341.8,4341.7,16.22393528]
[1756874526546,1e-08,4342.1,4342.0,2.30308613]
[1756874526738,0.001,4342.7,4342.5,0.792]
[1756874526914,0.001,4342.7,4342.6,7.24386792]
[1756874527110,0.001,4342.7,4342.6,7.78336792]
[1756874527626,0.11685638,4344.9,4342.6,7.78336792]
[1756874527627,1e-08,4342.8,4342.7,2.3027149]
[1756874527837,1e-08,4342.8,4342.7,4.31660856]
[1756874528134,1e-08,4342.8,4342.7,4.59668142]
[1756874528429,1e-08,4342.8,4342.7,5.53208142]
[1756874530643,1e-08,4342.8,4342.7,11.93208142]
[1756874531607,1e-08,4342.8,4342.7,12.62407426]
[1756874531826,1e-08,4342.8,4342.7,13.41607426]
[1756874534546,1e-08,4342.8,4342.7,12.17757426]
[1756874534748,1e-08,4342.8,4342.7,16.02357426]
[1756874534951,0.4243,4343.4,4342.9,2.30260885]
[1756874535110,0.4243,4343.4,4343.3,2.30239679]
[1756874535438,0.04,4343.8,4343.4,2.30234378]
[1756874535600,0.04,4343.8,4343.5,3.845]
[1756874535803,0.04,4343.8,4343.7,0.1152]
[1756874536005,0.2726,4343.6,4342.9,2.30257092]
[1756874536201,0.2726,4343.6,4343.5,0.1152]
[1756874536536,0.6996,4343.6,4343.5,0.1152]
[1756874537911,6.11703777,4343.6,4342.9,0.1152]
[1756874538107,1.34212201,4343.5,4342.9,0.1152]
[1756874538302,1.34482201,4343.5,4342.9,0.1152]
[1756874538507,0.2726,4343.0,4342.9,2.41780885]
[1756874538707,0.6996,4343.0,4342.9,2.41780885]
[1756874539411,0.6996,4343.0,4342.9,0.1152]
[1756874540447,0.6996,4343.0,4342.9,2.41780885]
[1756874546625,0.6969,4343.0,4342.9,2.41780885]
[1756874547851,0.2726,4343.0,4342.9,2.41780885]
[1756874552054,0.69217644,4343.5,4343.1,2.30245391]
[1756874552263,0.69217644,4343.5,4343.2,2.30242245]
[1756874552567,0.2699,4343.3,4343.2,2.30242245]
[1756874553079,0.2699,4343.3,4342.9,2.41780885]
[1756874553432,0.2699,4343.3,4343.0,2.30255583]
[1756874553756,0.6996,4343.3,4343.0,2.30255583]
[1756874553957,0.6996,4343.3,4342.9,0.1152]
[1756874554551,0.6996,4343.3,4342.9,2.4177959]
[1756874554753,0.4297,4343.2,4342.9,0.1152]
[1756874555130,0.2673,4343.0,4342.9,2.41780885]
[1756874555847,0.2673,4343.0,4342.9,0.1152]
[1756874556651,0.2673,4343.0,4342.9,2.41780885]
[1756874557025,0.4243,4343.5,4342.9,2.87000885]
[1756874557258,0.4243,4343.5,4343.1,2.30245279]
[1756874557440,4.2693,4343.5,4343.1,2.30245279]
[1756874557758,0.1152,4343.6,4343.4,0.3052]
[1756874557934,0.04,4343.8,4343.5,0.0230229]
[1756874558257,0.04,4343.8,4343.6,0.9458]
[1756874558464,0.04,4343.8,4343.7,2.32520661]
[1756874560346,0.04,4343.8,4343.7,3.08260661]
[1756874561066,0.04,4343.8,4343.7,0.78042184]
[1756874562072,0.04,4343.8,4343.7,3.57620661]
[1756874562275,0.04,4343.8,4343.7,3.66838477]
[1756874562677,0.04,4343.8,4343.7,4.15025167]
[1756874562973,0.04,4343.8,4343.7,4.26545167]
[1756874567774,0.04,4343.8,4343.7,3.77185167]
[1756874567982,0.04,4343.8,4343.7,4.26545167]
[1756874570575,0.04,4343.8,4343.7,4.28847351]
[1756874570757,0.04,4343.8,4343.7,4.9804041]
[1756874570982,0.04,4343.8,4343.7,4.95738226]
[1756874571185,0.04,4343.8,4343.7,5.63418226]
[1756874571368,0.04,4343.8,4343.7,5.74938226]
[1756874572858,0.041,4343.8,4343.7,5.74938226]
[1756874574975,0.041,4343.8,4343.7,4.95738226]
[1756874575498,0.041,4343.8,4343.7,4.26545167]
[1756874575664,0.041,4343.8,4343.7,4.35770866]
[1756874576156,0.041,4343.8,4343.7,8.20170866]
[1756874576552,0.041,4343.8,4343.7,8.10945167]
[1756874577479,0.041,4343.8,4343.7,6.85845167]
[1756874579190,0.041,4343.8,4343.7,7.61585167]
[1756874579390,0.041,4343.8,4343.7,8.08015167]
[1756874579791,6.41329517,4343.8,4343.3,0.69193378]
[1756874579997,5.94529517,4343.5,4343.3,0.69193378]
[1756874580197,0.6942,4343.7,4343.2,2.30244624]
[1756874580496,0.0054,4343.3,4343.2,2.30244624]
[1756874580871,0.69217805,4343.6,4343.5,2.30229077]
[1756874581070,0.041,4343.8,4343.7,2.30218477]
[1756874581471,0.041,4343.8,4343.7,2.59568477]
[1756874581795,0.041,4343.8,4343.7,3.98200162]
[1756874581962,0.041,4343.8,4343.7,4.43920162]
[1756874582162,0.041,4343.8,4343.7,3.22420162]
[1756874583107,0.041,4343.8,4343.7,2.30218477]
[1756874583795,0.041,4343.8,4343.7,3.51718477]
[1756874584097,0.041,4343.8,4343.7,3.05288477]
[1756874584284,0.041,4343.8,4343.7,2.30218477]
[1756874584490,0.3136,4343.8,4343.7,2.30218477]
[1756874585486,0.041,4343.8,4343.7,3.5348811]
[1756874585695,0.041,4343.8,4343.7,4.47940294]
[1756874586102,0.0437,4343.8,4342.9,0.4643]
[1756874586401,0.0437,4343.8,4343.7,2.30218477]
[1756874586898,0.041,4343.8,4343.7,2.30218477]
[1756874587100,0.041,4343.8,4343.7,2.32520661]
[1756874587300,0.041,4343.8,4343.7,2.30218477]
[1756874587805,0.041,4343.8,4343.7,2.32520661]
[1756874587972,0.041,4343.8,4343.7,2.78240661]
[1756874588390,0.041,4343.8,4343.7,3.07590661]
[1756874588590,0.041,4343.8,4343.7,4.45868267]
[1756874589788,0.041,4343.8,4343.7,4.57388267]
[1756874590598,0.041,4343.8,4343.7,8.43988267]
[1756874600423,0.041,4343.8,4343.7,9.23188267]
[1756874604352,1e-08,4343.8,4343.7,15.17717784]
[1756874604727,1e-08,4343.8,4343.7,15.26942568]
[1756874604931,1e-08,4343.8,4343.7,21.66942568]
[1756874610056,1e-08,4343.8,4343.7,15.72413051]
[1756874610256,1e-08,4343.8,4343.7,15.72213051]
[1756874612578,1e-08,4343.8,4343.7,11.85813051]
[1756874612750,1e-08,4343.8,4343.7,15.72113051]
[1756874614603,1e-08,4343.8,4343.7,15.25683051]
[1756874615383,1e-08,4343.8,4343.7,15.73183051]
[1756874615879,1e-08,4343.8,4343.7,11.86883051]
[1756874616185,1e-08,4343.8,4343.7,15.73083051]
[1756874616558,1e-08,4343.8,4343.7,11.86883051]
[1756874616759,1e-08,4343.8,4343.7,15.73083051]
[1756874617285,1e-08,4343.8,4343.7,21.67612568]
[1756874618387,1e-08,4343.8,4343.7,15.73083051]
[1756874620098,1e-08,4343.8,4343.7,15.72883051]
[1756874622502,1e-08,4343.8,4343.7,11.86883051]
[1756874622702,1e-08,4343.8,4343.7,15.72783051]
[1756874627673,1e-08,4343.8,4343.7,10.93663051]
[1756874627866,1e-08,4343.8,4343.7,14.49913051]
[1756874628195,0.42970001,4343.8,4343.7,6.27338477]
[1756874628397,0.69700001,4343.8,4343.7,6.27338477]
[1756874629575,0.69700001,4343.8,4343.7,6.27538477]
[1756874629903,0.69700001,4343.8,4343.7,2.41738477]
[1756874630097,0.69700001,4343.8,4343.7,6.27438477]
[1756874630897,0.69700001,4343.8,4343.7,0.1152]
[1756874631111,1.49260033,4343.8,4343.7,0.1152]
[1756874631611,1.49260033,4343.8,4343.7,2.41738477]
[1756874631811,0.69700001,4343.8,4343.7,2.41738477]
[1756874635018,0.42970001,4343.8,4343.7,2.41738477]
[1756874635225,0.00540001,4343.8,4343.7,2.41738477]
[1756874637033,0.69700001,4343.8,4343.7,0.1152]
[1756874637627,0.69700001,4343.8,4343.7,2.41738477]
[1756874638040,0.69700001,4343.8,4343.7,0.1152]
[1756874638235,0.69700001,4343.8,4343.7,2.41738477]
[1756874638440,0.69700001,4343.8,4343.7,0.1152]
[1756874638643,0.69700001,4343.8,4343.7,2.41738477]
[1756874639546,0.42970001,4343.8,4343.7,2.41738477]
[1756874640443,1e-08,4343.8,4343.7,2.41738477]
[1756874643452,1e-08,4343.8,4343.7,2.44040661]
[1756874643856,0.00270001,4343.8,4343.7,2.41738477]
[1756874644053,0.69690001,4343.8,4343.7,0.1152]
[1756874644251,1.49249033,4343.8,4343.7,0.1152]
[1756874645258,1.49249033,4343.8,4343.7,2.41738477]
[1756874645758,0.79829033,4343.8,4343.7,2.41738477]
[1756874646865,0.79829033,4343.8,4343.7,0.1152]
[1756874647084,0.79829033,4343.8,4343.7,2.41738477]
[1756874647237,0.79829033,4343.8,4343.7,0.1152]
[1756874647642,1.22259033,4343.8,4343.7,0.1152]
[1756874647838,1.22259033,4343.8,4343.6,0.004]
[1756874648049,8.46066226,4343.7,4343.6,0.004]
[1756874648242,8.19076226,4343.7,4343.6,0.004]
[1756874648444,8.46346226,4343.7,4343.6,0.004]
[1756874648742,8.57866226,4343.7,4343.6,0.004]
[1756874649336,8.31136226,4343.7,4343.6,0.004]
[1756874649639,11.73906226,4343.7,4343.6,0.004]
[1756874650060,11.23160323,4343.7,4343.6,2.30623777]
[1756874650266,3.852,4343.7,4343.6,2.30623777]
[1756874652380,3.85100001,4343.8,4343.6,2.30623777]
[1756874654554,6.85100001,4343.8,4343.7,3.06308477]
[1756874654966,6.85100001,4343.8,4343.7,0.7609]
[1756874655176,6.85100001,4343.8,4343.6,2.30622654]
[1756874655574,0.0027,4343.7,4343.6,0.004]
[1756874655780,7.26170323,4343.7,4343.6,0.004]
[1756874656184,11.11170323,4343.7,4343.6,0.004]
[1756874656581,12.54986355,4343.7,4343.6,0.004]
[1756874656784,12.97416355,4343.7,4343.6,0.004]
[1756874656983,12.54986355,4343.7,4343.6,0.004]
[1756874658178,5.29086032,4343.7,4343.6,0.004]
[1756874658386,3.8527,4343.7,4343.6,0.004]
[1756874659911,7.277,4343.7,4343.6,0.004]
[1756874660105,7.5469,4343.7,4343.6,0.004]
[1756874660263,7.277,4343.7,4343.6,0.004]
[1756874661668,7.5469,4343.7,4343.6,0.004]
[1756874661970,10.91471995,4343.7,4343.6,0.004]
[1756874662364,10.64481995,4343.7,4343.6,0.004]
[1756874662564,10.91471995,4343.7,4343.6,0.004]
[1756874663990,12.26781995,4343.7,4343.6,0.004]
[1756874664205,12.53771995,4343.7,4343.6,0.004]
[1756874665599,9.54133518,4343.7,4343.6,0.004]
[1756874667603,11.84351995,4343.7,4343.6,0.004]
[1756874668516,13.32971995,4343.7,4343.6,0.004]
[1756874670216,12.53771995,4343.7,4343.6,0.004]
[1756874670621,13.61420891,4343.7,4343.6,0.004]
[1756874671003,13.32971995,4343.7,4343.6,0.004]
[1756874673586,13.06881995,4343.7,4343.6,0.004]
[1756874673886,13.33871995,4343.7,4343.6,0.004]
[1756874676693,9.47971995,4343.7,4343.6,0.004]
[1756874676930,13.06781995,4343.7,4343.6,0.004]
[1756874677626,13.33771995,4343.7,4343.6,0.004]
[1756874677992,12.64351995,4343.7,4343.6,0.004]
[1756874678196,11.85151995,4343.7,4343.6,0.004]
[1756874678434,11.96671995,4343.7,4343.6,0.004]
[1756874679134,15.26601995,4343.7,4343.6,0.004]
[1756874679338,19.12301995,4343.7,4343.6,0.7582]
[1756874680809,19.12301995,4343.7,4343.6,0.004]
[1756874681010,19.12571995,4343.7,4343.6,0.004]
[1756874683546,25.07461392,4343.7,4343.6,0.004]
[1756874685621,25.06991392,4343.7,4343.6,0.004]
[1756874687853,25.07531392,4343.7,4343.6,0.004]
[1756874688938,26.05140288,4343.7,4343.6,0.004]
[1756874689439,21.22031392,4343.7,4343.6,0.004]
[1756874689615,25.07431392,4343.7,4343.6,0.004]
[1756874690217,25.07531392,4343.7,4343.6,0.004]
[1756874690446,25.06991392,4343.7,4343.6,1.2194]
[1756874690639,25.06991392,4343.7,4343.6,0.004]
[1756874691263,25.07261392,4343.7,4343.6,0.004]
[1756874691834,25.49691392,4343.7,4343.6,0.004]
[1756874692071,25.78140288,4343.7,4343.6,0.004]
[1756874692370,25.35710288,4343.7,4343.6,0.004]
[1756874692671,25.07261392,4343.7,4343.6,0.004]
[1756874695543,25.07061392,4343.7,4343.6,0.004]
[1756874700296,25.06791392,4343.7,4343.6,0.004]
[1756874700664,21.21491392,4343.7,4343.6,0.004]
[1756874700987,25.06591392,4343.7,4343.6,0.004]
[1756874701194,25.07131392,4343.7,4343.6,0.004]
[1756874703281,25.07131392,4343.7,4342.7,0.004]
[1756874703282,0.792,4343.2,4342.7,0.004]
[1756874703581,17.99239679,4342.9,4342.7,0.004]
[1756874703794,23.58959679,4342.9,4342.7,0.004]
[1756874704798,5.30266187,4342.8,4342.3,0.004]
[1756874704952,8.94889397,4342.4,4342.3,0.004]
[1756874705153,16.41067339,4342.4,4342.3,0.004]
[1756874706295,16.40007339,4342.4,4342.3,0.4334]
[1756874706500,16.40007339,4342.4,4342.3,0.7221]
[1756874706697,16.40007339,4342.4,4342.3,1.1784]
[1756874706996,16.40007339,4342.4,4342.3,0.7221]
[1756874708064,4.18083518,4342.4,4342.3,0.2927]
[1756874708308,0.1152,4342.4,4342.3,1.1784]
[1756874708470,0.1152,4342.6,4342.3,1.1784]
[1756874708786,6.852,4342.5,4342.4,3.18857398]
[1756874708957,6.852,4342.5,4342.4,4.05570383]
[1756874709157,6.852,4342.5,4342.4,1.75282985]
[1756874710993,6.852,4342.5,4342.4,4.05570383]
[1756874711870,6.852,4342.5,4342.4,1.75282985]
[1756874712073,6.852,4342.5,4342.4,4.05570383]
[1756874712275,6.852,4342.5,4342.4,1.75282985]
[1756874712872,12.80089397,4342.5,4342.4,1.1744]
[1756874713580,12.91609397,4342.5,4342.4,1.1744]
[1756874723505,3.0,4342.5,4342.4,3.47727398]
[1756874723800,6.85,4342.5,4342.4,3.47727398]
[1756874724009,3.85,4342.5,4342.4,3.47727398]
[1756874724365,1.623,4342.9,4342.4,1.76434312]
[1756874724586,7.16,4343.4,4342.4,1.76434312]
[1756874724587,5.94889397,4343.6,4343.0,2.30254602]
[1756874724787,0.1152,4343.4,4343.1,0.8857]
[1756874725000,0.1152,4343.4,4343.0,2.30254602]
[1756874725001,3.0,4343.2,4343.0,2.30254602]
[1756874725196,3.85,4343.1,4342.8,2.41781123]
[1756874725403,3.85,4343.0,4342.8,2.41781123]
[1756874725599,3.85,4342.9,4342.8,2.88987091]
[1756874725900,3.85,4342.9,4342.8,0.87595968]
[1756874726306,3.85,4342.9,4342.8,4.06432155]
[1756874726770,3.85,4342.9,4342.8,1.76165968]
[1756874727705,3.85,4342.9,4342.8,4.06432155]
[1756874729904,3.849,4342.9,4342.8,4.06432155]
[1756874732002,4.577,4342.9,4342.8,0.1152]
[1756874732202,4.1216,4342.9,4342.4,0.4358]
[1756874732402,5.94889397,4342.6,4342.5,0.4358]
[1756874732622,0.1152,4342.8,4342.6,0.9075]
[1756874732798,3.1152,4343.1,4342.7,3.5089149]
[1756874732989,3.1152,4343.1,4342.8,3.21015217]
[1756874733186,5.94889397,4343.2,4342.8,3.21015217]
[1756874733187,6.849,4343.0,4342.8,0.9075]
[1756874733389,6.849,4343.0,4342.9,0.9075]
[1756874733619,6.849,4343.0,4342.9,1.2062]
[1756874734194,6.849,4343.0,4342.9,0.7345]
[1756874736534,3.0,4343.0,4342.9,0.7345]
[1756874736736,6.849,4343.0,4342.9,0.7345]
[1756874737210,3.849,4343.0,4342.9,0.7345]
[1756874737845,3.849,4343.0,4342.7,2.30270545]
[1756874738008,3.849,4343.0,4342.7,2.73850545]
[1756874738332,3.849,4343.0,4342.7,2.30270545]
[1756874738534,3.849,4343.0,4342.7,2.73850545]
[1756874740325,3.849,4343.0,4342.7,0.4358]
[1756874740935,3.849,4343.0,4342.7,2.73850826]
[1756874741854,3.849,4343.0,4342.9,0.2987]
[1756874742054,3.849,4343.0,4342.9,3.50880885]
[1756874742423,3.849,4343.0,4342.9,1.2062]
[1756874742760,3.849,4343.0,4342.9,0.7345]
[1756874742962,4.1216,4343.0,4342.5,0.5869]
[1756874743126,5.94889397,4342.6,4342.3,0.004]
[1756874743438,3.849,4342.5,4342.3,0.004]
[1756874743847,3.849,4342.5,4342.4,0.2987]
[1756874744060,0.1152,4342.7,4342.4,0.7704]
[1756874744230,3.849,4342.5,4342.4,0.2987]
[1756874744432,3.849,4342.5,4342.4,0.7704]
[1756874744762,3.849,4342.5,4342.3,0.004]
[1756874744763,3.8517,4342.5,4342.3,0.004]
[1756874745329,3.849,4342.4,4342.3,0.004]
[1756874745850,3.8544,4342.4,4342.3,0.004]
[1756874746167,4.3098,4342.4,4342.3,0.004]
[1756874746530,3.8544,4342.4,4342.3,0.004]
[1756874746759,3.849,4342.4,4342.3,0.004]
[1756874748471,7.82402,4342.4,4342.3,0.004]
[1756874748636,6.9712,4342.4,4342.3,0.7385]
[1756874749078,6.9712,4342.4,4342.3,0.004]
[1756874749964,6.9739,4342.4,4342.3,0.004]
[1756874750544,9.27677398,4342.4,4342.3,0.004]
[1756874750767,18.59660152,4342.4,4342.3,0.004]
[1756874751481,18.31311256,4342.4,4342.3,0.004]
[1756874751782,14.18621256,4342.4,4342.3,0.004]
[1756874751959,10.77562821,4342.4,4342.3,0.004]
[1756874754750,2.30345748,4341.3,4339.4,0.004]
[1756874754950,6.09566974,4340.9,4339.5,0.4358]
[1756874755180,10.90366279,4340.9,4339.5,0.4358]
[1756874755380,6.09572281,4340.8,4339.4,0.004]
[1756874755560,0.792,4340.5,4339.4,0.004]
[1756874755759,16.16996923,4340.4,4339.4,0.004]
[1756874755960,20.65321012,4340.4,4339.4,0.004]
[1756874757769,20.31952795,4340.4,4339.4,0.004]
[1756874760585,16.14282795,4340.4,4339.6,0.4403]
[1756874760790,19.59642795,4340.4,4339.6,0.4403]
[1756874761894,18.79742795,4340.4,4340.0,0.4403]
[1756874762194,18.79642795,4340.4,4340.3,0.2935]
[1756874762554,18.79642795,4340.4,4340.3,0.004]
[1756874763354,18.79642795,4340.4,4340.3,0.2935]